[Event "19th IPCA WCC 2019"]
[Site "Ruzomberok"]
[Date "2019.07.03"]
[Round "6.6"]
[White "Palin, Denis"]
[Black "Lipilin, Ilia"]
[Result "1/2-1/2"]
[ECO "A04"]
[WhiteElo "2180"]
[BlackElo "2084"]
[Annotator "NA"]
[PlyCount "105"]
[EventDate "2019.06.28"]
[EventType "swiss"]
[EventCountry "SVK"]
[SourceTitle "playchess.com"]
[Source "ChessBase"]
[SourceQuality "1"]
[TimeControl "5400+30"]

1. Nf3 {[%emt 0:00:00]} f5 {[%emt 0:00:00]} 2. b3 {[%emt 0:00:00]} d6 {[%emt 0:00:06]} 3. d4 {[%emt 0:16:15]} Nf6 {[%emt 0:00:10]} 4. Bb2 {[%emt 0:00:18]} g6 {[%emt 0:00:07]} 5. g3 {[%emt 0:02:14]} Bg7 {[%emt 0:00:13]} 6. Bg2 {[%emt 0:00:13]} O-O {[%emt 0:02:40]} 7. O-O {[%emt 0:00:17]} c6 {[%emt 0:00:27]} 8. c4 {[%emt 0:03:11]} e5 {[%emt 0:02:50]} 9. dxe5 {[%emt 0:00:30]} Ng4 {[%emt 0:00:10]} 10. Nc3 {[%emt 0:03:53]} Nxe5 {[%emt 0:03:14]} 11. Nxe5 {[%emt 0:00:19]} dxe5 {[%emt 0:03:52]} 12. Qxd8 {[%emt 0:00:45]} Rxd8 {[%emt 0:00:24]} 13. Rad1 {[%emt 0:00:01]} Rxd1 {[%emt 0:01:28]} 14. Rxd1 {[%emt 0:00:01]} Bf6 {[%emt 0:01:06]} 15. Na4 {[%emt 0:03:27]} Nd7 {[%emt 0:01:33]} 16. f4 {[%emt 0:08:43]} Kf7 {[%emt 0:01:13]} 17. b4 {[%emt 0:10:02]} e4 {[%emt 0:03:50]} 18. Bxf6 {[%emt 0:04:49]} Nxf6 {[%emt 0:00:27]} 19. Rd8 {[%emt 0:02:12]} Ne8 {[%emt 0:00:19]} 20. e3 {[%emt 0:03:10]} Ke7 {[%emt 0:00:15]} 21. Rd4 {[%emt 0:01:12]} Be6 {[%emt 0:00:42]} 22. Bf1 {[%emt 0:06:37]} b6 {[%emt 0:00:42]} 23. a3 {[%emt 0:01:36]} Nf6 {[%emt 0:03:24]} 24. h3 {[%emt 0:02:39]} Nd7 {[%emt 0:06:45]} 25. Nc3 {[%emt 0:06:05]} a5 {[%emt 0:04:28]} 26. b5 {[%emt 0:01:29]} Rc8 {[%emt 0:00:15]} 27. g4 {[%emt 0:00:37]} cxb5 {[%emt 0:04:21]} 28. Nxb5 {[%emt 0:00:03]} Nc5 {[%emt 0:00:42]} 29. gxf5 {[%emt 0:02:58]} gxf5 {[%emt 0:00:19]} 30. Rd2 {[%emt 0:00:50]} Rd8 {[%emt 0:01:37]} 31. Nd4 {[%emt 0:00:23]} Bd7 {[%emt 0:00:34]} 32. Rb2 {[%emt 0:02:13]} Na4 {[%emt 0:00:13]} 33. Rg2 {[%emt 0:00:47]} Kf6 {[%emt 0:00:15]} 34. h4 {[%emt 0:04:55]} Nc5 {[%emt 0:03:05]} 35. h5 {[%emt 0:01:34]} Ne6 {[%emt 0:09:06]} 36. Rb2 {[%emt 0:00:51]} Rb8 {[%emt 0:00:10]} 37. Rd2 {[%emt 0:04:02]} Be8 {[%emt 0:04:12]} 38. Be2 {[%emt 0:04:33]} Rd8 {[%emt 0:04:19]} 39. Kf2 {[%emt 0:00:50]} Ng7 {[%emt 0:01:05]} 40. Rb2 {[%emt 0:04:03]} Rd6 {[%emt 0:00:13]} 41. Rb1 {[%emt 0:00:53]} Ne6 {[%emt 0:01:26]} 42. Rd1 {[%emt 0:00:39]} Nc5 {[%emt 0:02:10]} 43. Rg1 {[%emt 0:00:37]} Ne6 {[%emt 0:00:30]} 44. Rd1 {[%emt 0:00:27]} Ba4 {[%emt 0:03:01]} 45. Rb1 {[%emt 0:00:12]} Be8 {[%emt 0:02:12]} 46. Rd1 {[%emt 0:00:00]} Bf7 {[%emt 0:00:20]} 47. Rb1 {[%emt 0:00:28]} Nc5 {[%emt 0:01:48]} 48. Rb5 {[%emt 0:00:23]} Be8 {[%emt 0:00:13]} 49. Rb1 {[%emt 0:00:05]} Ba4 {[%emt 0:04:20]} 50. Rg1 {[%emt 0:01:54]} Ne6 {[%emt 0:02:30]} 51. Rb1 {[%emt 0:00:09]} Be8 {[%emt 0:04:56]} 52. Rd1 {[%emt 0:00:06]} Ng7 {[%emt 0:00:40]} 53. Rg1 {[%emt 0:01:11]} 1/2-1/2

[Event "19th IPCA WCC 2019"]
[Site "Ruzomberok"]
[Date "2019.07.03"]
[Round "6.7"]
[White "Jennitha, Anto K."]
[Black "Glazar, Domagoj"]
[Result "0-1"]
[ECO "C77"]
[WhiteElo "1972"]
[BlackElo "2153"]
[Annotator "NA"]
[PlyCount "112"]
[EventDate "2019.06.28"]
[EventType "swiss"]
[EventCountry "SVK"]
[SourceTitle "playchess.com"]
[Source "ChessBase"]
[SourceQuality "1"]
[TimeControl "5400+30"]

1. e4 {[%emt 0:00:00]} e5 {[%emt 0:00:00]} 2. Nf3 {[%emt 0:00:00]} Nc6 {[%emt 0:00:00]} 3. Bb5 {[%emt 0:00:00]} a6 {[%emt 0:00:01]} 4. Ba4 {[%emt 0:00:00]} Nf6 {[%emt 0:01:26]} 5. Qe2 {[%emt 0:00:29]} b5 {[%emt 0:00:26]} 6. Bb3 {[%emt 0:00:03]} Be7 {[%emt 0:00:51]} 7. c3 {[%emt 0:01:17]} O-O {[%emt 0:00:21]} 8. O-O {[%emt 0:01:15]} d6 {[%emt 0:02:01]} 9. d3 {[%emt 0:02:45]} Na5 {[%emt 0:02:51]} 10. Bc2 {[%emt 0:01:32]} c5 {[%emt 0:00:19]} 11. b3 {[%emt 0:05:50]} Nc6 {[%emt 0:02:28]} 12. Rd1 {[%emt 0:01:59]} Qc7 {[%emt 0:02:33]} 13. h3 {[%emt 0:01:31]} b4 {[%emt 0:06:37]} 14. d4 {[%emt 0:05:42]} cxd4 {[%emt 0:08:40]} 15. cxd4 {[%emt 0:00:14]} Nxd4 {[%emt 0:00:35]} 16. Nxd4 {[%emt 0:00:04]} exd4 {[%emt 0:00:16]} 17. Bb2 {[%emt 0:04:16]} Nd7 {[%emt 0:03:50]} 18. Bxd4 {[%emt 0:03:20]} Bf6 {[%emt 0:01:39]} 19. Bxf6 {[%emt 0:01:13]} Nxf6 {[%emt 0:00:09]} 20. Bd3 {[%emt 0:00:09]} Re8 {[%emt 0:00:48]} 21. Nd2 {[%emt 0:03:21]} Bb7 {[%emt 0:00:50]} 22. Re1 {[%emt 0:11:44]} Nd5 {[%emt 0:12:17]} 23. Qf3 {[%emt 0:06:05]} Nc3 {[%emt 0:01:33]} 24. Qg3 {[%emt 0:04:00]} Re7 {[%emt 0:04:35]} 25. f3 {[%emt 0:04:59]} Rae8 {[%emt 0:02:49]} 26. Nc4 {[%emt 0:07:13]} Qc5+ {[%emt 0:05:57]} 27. Qf2 {[%emt 0:00:51]} f6 {[%emt 0:07:47]} 28. a4 {[%emt 0:09:25]} Rd8 {[%emt 0:04:11]} 29. Ne3 {[%emt 0:06:14]} d5 {[%emt 0:09:36]} 30. exd5 {[%emt 0:00:44]} Nxd5 {[%emt 0:00:34]} 31. Bc4 {[%emt 0:00:37]} Kf8 {[%emt 0:00:40]} 32. Nf5 {[%emt 0:05:19]} Rxe1+ {[%emt 0:03:19]} 33. Rxe1 {[%emt 0:00:02]} Qxf2+ {[%emt 0:00:23]} 34. Kxf2 {[%emt 0:00:02]} g6 {[%emt 0:00:45]} 35. Nd4 {[%emt 0:00:32]} Rc8 {[%emt 0:07:13]} 36. Ne6+ {[%emt 0:00:55]} Kf7 {[%emt 0:01:04]} 37. Nd4 {[%emt 0:01:11]} h5 {[%emt 0:04:48]} 38. Nc2 {[%emt 0:00:24]} a5 {[%emt 0:00:42]} 39. Ne3 {[%emt 0:03:14]} Rc5 {[%emt 0:01:16]} 40. g4 {[%emt 0:03:32]} hxg4 {[%emt 0:00:23]} 41. hxg4 {[%emt 0:00:13]} Kg7 {[%emt 0:00:51]} 42. Rd1 {[%emt 0:01:58]} Nb6 {[%emt 0:01:12]} 43. Be6 {[%emt 0:02:07]} Kf8 {[%emt 0:01:13]} 44. Nc4 {[%emt 0:00:58]} Nxc4 {[%emt 0:00:35]} 45. Bxc4 {[%emt 0:00:04]} Ke7 {[%emt 0:01:15]} 46. f4 {[%emt 0:00:30]} Bc8 {[%emt 0:00:35]} 47. Kf3 {[%emt 0:00:12]} Bd7 48. Re1+ {[%emt 0:00:39]} Kd6 {[%emt 0:00:29]} 49. Kg3 {[%emt 0:00:22]} g5 {[%emt 0:00:48]} 50. Rd1+ Kc7 {[%emt 0:00:12]} 51. Rd4 {[%emt 0:04:02]} Bc8 {[%emt 0:01:09]} 52. fxg5 {[%emt 0:00:53]} Rxg5 {[%emt 0:00:27]} 53. Rf4 {[%emt 0:00:45]} f5 {[%emt 0:00:20]} 54. Be2 {[%emt 0:00:08]} fxg4 {[%emt 0:00:23]} 55. Bxg4 {[%emt 0:00:22]} Kd6 {[%emt 0:00:33]} 56. Kh4 Rxg4+ 0-1

[Event "19th IPCA WCC 2019"]
[Site "Ruzomberok"]
[Date "2019.07.03"]
[Round "6.8"]
[White "Valenta, Vit"]
[Black "Tersinsev, Andrey"]
[Result "1-0"]
[ECO "A00"]
[WhiteElo "2147"]
[BlackElo "2164"]
[Annotator "NA"]
[PlyCount "165"]
[EventDate "2019.06.28"]
[EventType "swiss"]
[EventCountry "SVK"]
[SourceTitle "playchess.com"]
[Source "ChessBase"]
[SourceQuality "1"]
[TimeControl "5400+30"]

1. b4 {[%emt 0:00:00]} e5 {[%emt 0:00:03]} 2. Bb2 {[%emt 0:00:00]} Bxb4 {[%emt 0:00:36]} 3. Bxe5 {[%emt 0:00:00]} Nf6 {[%emt 0:00:17]} 4. Nf3 {[%emt 0:00:00]} d5 {[%emt 0:00:53]} 5. g3 c5 {[%emt 0:00:39]} 6. Bb2 {[%emt 0:00:41]} Nc6 {[%emt 0:00:21]} 7. Bg2 {[%emt 0:00:11]} O-O {[%emt 0:00:12]} 8. O-O {[%emt 0:00:06]} Re8 {[%emt 0:00:16]} 9. e3 {[%emt 0:00:46]} Bg4 {[%emt 0:00:18]} 10. h3 {[%emt 0:00:35]} Be6 {[%emt 0:00:17]} 11. d3 {[%emt 0:02:25]} Qd7 {[%emt 0:00:08]} 12. Kh2 {[%emt 0:04:55]} d4 {[%emt 0:00:52]} 13. e4 {[%emt 0:01:43]} c4 {[%emt 0:07:41]} 14. Ng5 {[%emt 0:01:03]} c3 {[%emt 0:07:20]} 15. Bc1 {[%emt 0:00:59]} b5 {[%emt 0:11:41]} 16. f4 {[%emt 0:01:31]} h6 {[%emt 0:04:23]} 17. Nxe6 {[%emt 0:02:27]} fxe6 {[%emt 0:01:27]} 18. e5 Nd5 {[%emt 0:00:57]} 19. Be4 {[%emt 0:22:30]} Nce7 {[%emt 0:07:40]} 20. Qf3 {[%emt 0:05:13]} Rad8 {[%emt 0:10:39]} 21. a4 {[%emt 0:08:12]} a6 {[%emt 0:05:27]} 22. Na3 {[%emt 0:04:15]} Nf5 {[%emt 0:04:03]} 23. axb5 {[%emt 0:06:33]} axb5 {[%emt 0:01:35]} 24. Rb1 {[%emt 0:00:35]} Bxa3 {[%emt 0:10:35]} 25. Bxa3 {[%emt 0:00:07]} Nfe3 {[%emt 0:02:54]} 26. Rf2 {[%emt 0:02:32]} b4 {[%emt 0:01:55]} 27. Bc1 {[%emt 0:00:58]} Qe7 {[%emt 0:02:33]} 28. Re2 {[%emt 0:02:07]} Rb8 {[%emt 0:03:42]} 29. Rb3 {[%emt 0:04:37]} Qa7 {[%emt 0:01:28]} 30. f5 {[%emt 0:03:42]} Rf8 {[%emt 0:01:14]} 31. Bxd5 {[%emt 0:09:27]} Nxd5 {[%emt 0:00:49]} 32. f6 {[%emt 0:00:17]} Qf7 {[%emt 0:06:02]} 33. Qg4 {[%emt 0:02:21]} Kh7 {[%emt 0:00:47]} 34. fxg7 {[%emt 0:04:31]} Rg8 {[%emt 0:00:13]} 35. Qxd4 {[%emt 0:01:56]} Rxg7 {[%emt 0:01:54]} 36. Qh4 {[%emt 0:02:52]} Rg6 {[%emt 0:00:35]} 37. Bf4 {[%emt 0:03:23]} Rf8 {[%emt 0:03:14]} 38. Rf2 {[%emt 0:00:44]} Qa7 {[%emt 0:00:09]} 39. Kg2 {[%emt 0:02:16]} Qd4 {[%emt 0:01:07]} 40. Kf1 {[%emt 0:00:56]} Rfg8 {[%emt 0:01:39]} 41. Rf3 {[%emt 0:01:34]} Nxf4 {[%emt 0:00:27]} 42. Qxf4 {[%emt 0:00:15]} Qxf4 {[%emt 0:00:09]} 43. gxf4 {[%emt 0:00:09]} Rg1+ {[%emt 0:00:19]} 44. Ke2 {[%emt 0:00:08]} Rc1 {[%emt 0:00:29]} 45. Rxb4 {[%emt 0:00:23]} Rg2+ {[%emt 0:01:03]} 46. Ke3 {[%emt 0:00:11]} Rcxc2 {[%emt 0:00:43]} 47. Rc4 {[%emt 0:01:16]} Rc1 {[%emt 0:00:21]} 48. Rf2 {[%emt 0:00:27]} Rg3+ {[%emt 0:00:58]} 49. Rf3 {[%emt 0:01:19]} Rg2 {[%emt 0:00:39]} 50. d4 {[%emt 0:00:44]} c2 {[%emt 0:00:22]} 51. Rc7+ {[%emt 0:00:50]} Kg6 {[%emt 0:00:06]} 52. f5+ {[%emt 0:00:05]} exf5 {[%emt 0:00:19]} 53. Rc6+ {[%emt 0:00:21]} Kg5 {[%emt 0:00:39]} 54. h4+ {[%emt 0:00:25]} Kxh4 {[%emt 0:00:11]} 55. Kf4 {[%emt 0:01:17]} Rg4+ {[%emt 0:00:51]} 56. Kxf5 {[%emt 0:00:11]} Rg5+ {[%emt 0:00:32]} 57. Kf6 {[%emt 0:00:37]} Kh5 {[%emt 0:00:51]} 58. Rh3+ {[%emt 0:00:47]} Kg4 {[%emt 0:00:05]} 59. Rxh6 {[%emt 0:00:16]} Rf1+ {[%emt 0:00:12]} 60. Ke7 {[%emt 0:00:01]} Rg7+ {[%emt 0:00:17]} 61. Kd6 {[%emt 0:00:14]} c1=Q {[%emt 0:00:00]} 62. Rxc1 {[%emt 0:00:00]} Rxc1 {[%emt 0:00:06]} 63. d5 {[%emt 0:00:00]} Ra1 {[%emt 0:01:08]} 64. e6 {[%emt 0:00:39]} Kg5 {[%emt 0:01:32]} 65. Rh2 {[%emt 0:00:40]} Raa7 {[%emt 0:00:57]} 66. Ke5 {[%emt 0:00:19]} Rgb7 {[%emt 0:00:22]} 67. Rg2+ {[%emt 0:00:18]} Kh6 {[%emt 0:00:32]} 68. Kf6 {[%emt 0:00:38]} Kh7 {[%emt 0:00:37]} 69. d6 {[%emt 0:00:16]} Rb1 {[%emt 0:00:14]} 70. d7 {[%emt 0:00:41]} Rd1 {[%emt 0:00:36]} 71. Rg7+ {[%emt 0:01:14]} Kh8 {[%emt 0:00:32]} 72. Rf7 {[%emt 0:00:57]} Kg8 {[%emt 0:00:31]} 73. Rg7+ {[%emt 0:00:57]} Kh8 {[%emt 0:00:04]} 74. d8=Q+ {[%emt 0:00:15]} Rxd8 {[%emt 0:00:05]} 75. Rxa7 {[%emt 0:00:04]} Rd1 {[%emt 0:00:51]} 76. e7 {[%emt 0:00:44]} Rf1+ {[%emt 0:00:22]} 77. Kg5 {[%emt 0:00:15]} Rg1+ {[%emt 0:00:15]} 78. Kf5 {[%emt 0:00:26]} Rf1+ {[%emt 0:00:30]} 79. Ke6 {[%emt 0:00:12]} Re1+ {[%emt 0:00:07]} 80. Kd7 {[%emt 0:00:16]} Rd1+ {[%emt 0:00:07]} 81. Kc8 {[%emt 0:00:17]} Re1 {[%emt 0:00:58]} 82. Kd8 {[%emt 0:00:11]} Rd1+ {[%emt 0:00:07]} 83. Rd7 {[%emt 0:00:07]} 1-0

[Event "19th IPCA WCC 2019"]
[Site "Ruzomberok"]
[Date "2019.07.03"]
[Round "6.9"]
[White "Gedgafov, Chamal"]
[Black "Sovetov, Oleksandr"]
[Result "1-0"]
[ECO "A06"]
[WhiteElo "2163"]
[BlackElo "2009"]
[Annotator "NA"]
[PlyCount "83"]
[EventDate "2019.06.28"]
[EventType "swiss"]
[EventCountry "SVK"]
[SourceTitle "playchess.com"]
[Source "ChessBase"]
[SourceQuality "1"]
[TimeControl "5400+30"]

1. Nf3 {[%emt 0:00:00]} d5 {[%emt 0:00:00]} 2. c4 {[%emt 0:00:00]} c6 {[%emt 0:00:00]} 3. g3 {[%emt 0:00:30]} Nf6 {[%emt 0:00:26]} 4. Bg2 {[%emt 0:00:12]} Bf5 {[%emt 0:00:45]} 5. O-O {[%emt 0:00:21]} e6 {[%emt 0:00:43]} 6. a4 {[%emt 0:02:26]} Be7 {[%emt 0:04:56]} 7. a5 {[%emt 0:01:26]} Bxb1 {[%emt 0:03:44]} 8. Rxb1 {[%emt 0:00:06]} Qxa5 {[%emt 0:00:11]} 9. d3 {[%emt 0:00:40]} O-O {[%emt 0:07:30]} 10. b3 {[%emt 0:00:20]} Qc7 {[%emt 0:02:02]} 11. Bb2 {[%emt 0:00:36]} Nbd7 {[%emt 0:06:41]} 12. Qc2 {[%emt 0:00:49]} Rfc8 {[%emt 0:02:14]} 13. Rfc1 {[%emt 0:03:48]} a5 {[%emt 0:09:24]} 14. h3 {[%emt 0:02:03]} h6 {[%emt 0:02:20]} 15. Ba1 {[%emt 0:05:31]} Qd8 {[%emt 0:06:58]} 16. e4 {[%emt 0:01:15]} dxe4 {[%emt 0:04:44]} 17. dxe4 {[%emt 0:00:45]} Qb6 {[%emt 0:00:36]} 18. g4 {[%emt 0:14:12]} Rd8 {[%emt 0:07:11]} 19. e5 {[%emt 0:03:33]} Nh7 {[%emt 0:01:03]} 20. h4 {[%emt 0:02:37]} Nhf8 {[%emt 0:01:25]} 21. g5 {[%emt 0:04:24]} h5 {[%emt 0:00:52]} 22. Bh3 {[%emt 0:11:09]} g6 {[%emt 0:05:35]} 23. Rd1 {[%emt 0:04:31]} Bc5 {[%emt 0:14:56]} 24. Rd3 {[%emt 0:06:10]} Nb8 {[%emt 0:03:09]} 25. Rd6 {[%emt 0:01:50]} Na6 {[%emt 0:01:44]} 26. Rbd1 {[%emt 0:01:52]} Qc7 {[%emt 0:01:44]} 27. Qd3 {[%emt 0:01:29]} Re8 {[%emt 0:03:38]} 28. Nd2 {[%emt 0:01:29]} Nb4 {[%emt 0:01:03]} 29. Qc3 {[%emt 0:00:19]} Re7 {[%emt 0:06:49]} 30. Ne4 {[%emt 0:05:47]} Qb6 {[%emt 0:00:09]} 31. Qd2 {[%emt 0:05:34]} Na6 {[%emt 0:02:15]} 32. Qc2 {[%emt 0:02:41]} Qc7 {[%emt 0:00:37]} 33. Qe2 {[%emt 0:01:09]} Nh7 34. Bg2 {[%emt 0:00:43]} Rae8 {[%emt 0:01:03]} 35. Bf3 {[%emt 0:00:32]} Ra8 {[%emt 0:00:25]} 36. Qd2 {[%emt 0:00:48]} Nf8 {[%emt 0:00:31]} 37. Nf6+ {[%emt 0:00:45]} Kg7 {[%emt 0:00:16]} 38. Qe2 {[%emt 0:00:33]} Rc8 {[%emt 0:00:41]} 39. Bxh5 {[%emt 0:00:22]} gxh5 {[%emt 0:00:38]} 40. Qxh5 {[%emt 0:00:19]} Ng6 {[%emt 0:00:25]} 41. Qh7+ {[%emt 0:00:14]} Kf8 {[%emt 0:00:02]} 42. Qg8# {[%emt 0:00:11]} 1-0

[Event "19th IPCA WCC 2019"]
[Site "Ruzomberok"]
[Date "2019.07.03"]
[Round "6.10"]
[White "Roehrig, Uwe"]
[Black "Tsapalin, Sergey"]
[Result "1/2-1/2"]
[ECO "A10"]
[WhiteElo "1802"]
[BlackElo "1935"]
[Annotator "NA"]
[PlyCount "84"]
[EventDate "2019.06.28"]
[EventType "swiss"]
[EventCountry "SVK"]
[SourceTitle "playchess.com"]
[Source "ChessBase"]
[SourceQuality "1"]
[TimeControl "5400+30"]

1. c4 {[%emt 0:00:00]} f5 {[%emt 0:00:00]} 2. g3 {[%emt 0:00:10]} Nf6 {[%emt 0:00:00]} 3. Bg2 {[%emt 0:00:13]} g6 {[%emt 0:00:00]} 4. Nc3 {[%emt 0:00:55]} Bg7 {[%emt 0:00:07]} 5. e3 {[%emt 0:00:20]} O-O {[%emt 0:00:15]} 6. Nge2 {[%emt 0:00:39]} e5 {[%emt 0:00:10]} 7. f4 {[%emt 0:02:22]} d6 {[%emt 0:00:48]} 8. O-O {[%emt 0:00:28]} c6 {[%emt 0:00:21]} 9. d3 {[%emt 0:02:27]} Na6 {[%emt 0:00:54]} 10. a3 {[%emt 0:01:11]} Qe7 {[%emt 0:00:34]} 11. b4 {[%emt 0:01:17]} Be6 {[%emt 0:01:20]} 12. Rb1 {[%emt 0:01:25]} Bf7 {[%emt 0:05:43]} 13. Bb2 {[%emt 0:02:11]} Rae8 {[%emt 0:04:17]} 14. e4 {[%emt 0:03:34]} fxe4 {[%emt 0:01:48]} 15. fxe5 {[%emt 0:02:30]} dxe5 {[%emt 0:00:51]} 16. Nxe4 {[%emt 0:01:02]} Nxe4 {[%emt 0:00:04]} 17. Bxe4 {[%emt 0:00:13]} Nc7 {[%emt 0:00:15]} 18. Qc2 {[%emt 0:01:32]} Ne6 {[%emt 0:01:13]} 19. Rbe1 {[%emt 0:02:23]} Ng5 {[%emt 0:01:07]} 20. Bg2 {[%emt 0:01:49]} Be6 {[%emt 0:00:32]} 21. h4 {[%emt 0:03:01]} Nh3+ {[%emt 0:00:52]} 22. Kh2 {[%emt 0:04:50]} Nf2 {[%emt 0:00:50]} 23. Nc3 {[%emt 0:01:01]} Ng4+ {[%emt 0:00:31]} 24. Kg1 {[%emt 0:00:24]} Bh6 {[%emt 0:15:25]} 25. Ne4 {[%emt 0:05:55]} Bf5 {[%emt 0:05:31]} 26. Bc1 {[%emt 0:04:29]} Bxc1 {[%emt 0:00:40]} 27. Qxc1 {[%emt 0:00:19]} Qd8 {[%emt 0:00:18]} 28. Qc3 {[%emt 0:01:38]} Qd4+ {[%emt 0:17:06]} 29. Qxd4 {[%emt 0:00:44]} exd4 {[%emt 0:00:03]} 30. Nd6 {[%emt 0:04:02]} Rxe1 {[%emt 0:00:30]} 31. Rxe1 {[%emt 0:00:13]} Bxd3 {[%emt 0:00:07]} 32. Rd1 {[%emt 0:02:02]} Ne5 {[%emt 0:01:03]} 33. Nxb7 {[%emt 0:00:25]} Bxc4 {[%emt 0:09:30]} 34. Rxd4 {[%emt 0:00:47]} Bb5 {[%emt 0:00:08]} 35. Nc5 {[%emt 0:02:49]} Nf3+ {[%emt 0:15:46]} 36. Bxf3 {[%emt 0:00:53]} Rxf3 {[%emt 0:00:04]} 37. a4 {[%emt 0:01:13]} Be2 {[%emt 0:00:10]} 38. Kg2 {[%emt 0:01:00]} Rf7 {[%emt 0:00:49]} 39. Rd8+ {[%emt 0:01:08]} Kg7 {[%emt 0:00:04]} 40. Rd7 {[%emt 0:00:17]} Rxd7 {[%emt 0:00:43]} 41. Nxd7 {[%emt 0:00:17]} Bd1 {[%emt 0:00:15]} 42. a5 {[%emt 0:01:24]} Bb3 {[%emt 0:01:01]} 1/2-1/2

[Event "19th IPCA WCC 2019"]
[Site "Ruzomberok"]
[Date "2019.07.03"]
[Round "6.11"]
[White "Obodchuk, Andrei"]
[Black "Jurkiewicz, Krzysztof"]
[Result "1/2-1/2"]
[ECO "E71"]
[WhiteElo "2316"]
[BlackElo "2275"]
[Annotator "NA"]
[PlyCount "97"]
[EventDate "2019.06.28"]
[EventType "swiss"]
[EventCountry "SVK"]
[SourceTitle "playchess.com"]
[Source "ChessBase"]
[SourceQuality "1"]
[TimeControl "5400+30"]

1. d4 {[%emt 0:00:00]} Nf6 {[%emt 0:00:00]} 2. c4 {[%emt 0:00:00]} g6 {[%emt 0:00:00]} 3. Nc3 {[%emt 0:00:00]} Bg7 {[%emt 0:00:00]} 4. e4 {[%emt 0:00:00]} d6 {[%emt 0:00:00]} 5. h3 {[%emt 0:00:02]} O-O {[%emt 0:00:00]} 6. Be3 {[%emt 0:00:04]} e5 {[%emt 0:00:17]} 7. d5 {[%emt 0:00:15]} a5 {[%emt 0:01:37]} 8. g4 {[%emt 0:00:21]} Na6 {[%emt 0:15:16]} 9. Nge2 {[%emt 0:00:21]} Nc5 10. Ng3 c6 {[%emt 0:02:30]} 11. g5 {[%emt 0:02:52]} Ne8 {[%emt 0:00:32]} 12. dxc6 {[%emt 0:00:14]} Ne6 {[%emt 0:02:36]} 13. cxb7 {[%emt 0:00:17]} Bxb7 {[%emt 0:00:06]} 14. Qd2 {[%emt 0:01:13]} f5 {[%emt 0:00:45]} 15. gxf6 {[%emt 0:00:28]} Nxf6 {[%emt 0:05:22]} 16. O-O-O {[%emt 0:07:15]} Nd4 {[%emt 0:00:35]} 17. Nd5 {[%emt 0:01:30]} a4 {[%emt 0:03:54]} 18. Kb1 {[%emt 0:00:29]} Rf7 {[%emt 0:04:28]} 19. Rc1 {[%emt 0:01:59]} Rb8 {[%emt 0:02:57]} 20. Bd3 {[%emt 0:05:04]} Bxd5 {[%emt 0:12:08]} 21. exd5 {[%emt 0:01:39]} Rfb7 {[%emt 0:00:47]} 22. Bxd4 {[%emt 0:00:12]} exd4 {[%emt 0:00:10]} 23. Rc2 {[%emt 0:00:04]} Nd7 {[%emt 0:11:03]} 24. Ne4 {[%emt 0:00:39]} Ne5 {[%emt 0:01:58]} 25. h4 {[%emt 0:00:54]} a3 {[%emt 0:08:04]} 26. b3 {[%emt 0:01:12]} Rxb3+ {[%emt 0:00:15]} 27. axb3 {[%emt 0:00:02]} Rxb3+ {[%emt 0:00:01]} 28. Ka2 {[%emt 0:00:05]} Rxd3 {[%emt 0:00:41]} 29. Qg5 {[%emt 0:00:31]} Qf8 {[%emt 0:03:26]} 30. Rb1 {[%emt 0:01:23]} Rf3 {[%emt 0:00:58]} 31. Qc1 {[%emt 0:06:11]} d3 {[%emt 0:00:47]} 32. Rd2 {[%emt 0:00:11]} Bh6 {[%emt 0:00:44]} 33. Ng5 {[%emt 0:00:21]} Rxf2 {[%emt 0:00:27]} 34. Rxf2 {[%emt 0:00:50]} Qxf2+ {[%emt 0:00:02]} 35. Kxa3 {[%emt 0:00:13]} Qa7+ {[%emt 0:02:15]} 36. Kb3 {[%emt 0:00:21]} Qb6+ {[%emt 0:01:02]} 37. Kc3 {[%emt 0:01:19]} Qa5+ {[%emt 0:00:47]} 38. Kd4 {[%emt 0:00:37]} Qc5+ {[%emt 0:04:07]} 39. Ke4 {[%emt 0:00:06]} Qc8 {[%emt 0:01:00]} 40. Qf4 {[%emt 0:05:52]} Qxc4+ {[%emt 0:00:45]} 41. Ke3 {[%emt 0:00:02]} Qc5+ {[%emt 0:01:29]} 42. Qd4 {[%emt 0:00:03]} Qc8 {[%emt 0:01:39]} 43. Qf4 {[%emt 0:03:20]} Qc5+ {[%emt 0:01:08]} 44. Qd4 {[%emt 0:00:07]} Qc8 {[%emt 0:01:56]} 45. Qf4 {[%emt 0:00:01]} Qc5+ 46. Qd4 Qc2 47. Rb8+ Bf8 48. Rb1 Qc7 49. Qf4 1/2-1/2

[Event "19th IPCA WCC 2019"]
[Site "Ruzomberok"]
[Date "2019.07.03"]
[Round "6.12"]
[White "Kovacevic, Krsto"]
[Black "Matana, Zoran"]
[Result "1-0"]
[ECO "B52"]
[WhiteElo "2049"]
[BlackElo "1818"]
[Annotator "NA"]
[PlyCount "105"]
[EventDate "2019.06.28"]
[EventType "swiss"]
[EventCountry "SVK"]
[SourceTitle "playchess.com"]
[Source "ChessBase"]
[SourceQuality "1"]
[TimeControl "5400+30"]

1. e4 {[%emt 0:00:00]} c5 {[%emt 0:00:00]} 2. Nf3 {[%emt 0:00:00]} d6 {[%emt 0:00:00]} 3. Bb5+ {[%emt 0:00:00]} Bd7 {[%emt 0:00:17]} 4. Bxd7+ {[%emt 0:00:12]} Qxd7 {[%emt 0:00:15]} 5. O-O {[%emt 0:00:11]} Nc6 {[%emt 0:02:14]} 6. Qe2 {[%emt 0:00:11]} g6 {[%emt 0:00:39]} 7. c3 {[%emt 0:00:13]} Bg7 {[%emt 0:00:26]} 8. Re1 {[%emt 0:00:18]} e5 {[%emt 0:01:29]} 9. d3 {[%emt 0:00:15]} Nge7 {[%emt 0:00:23]} 10. Be3 {[%emt 0:01:29]} f5 {[%emt 0:01:06]} 11. exf5 {[%emt 0:00:58]} Nxf5 {[%emt 0:00:03]} 12. Bg5 {[%emt 0:03:22]} O-O {[%emt 0:00:21]} 13. Na3 {[%emt 0:01:30]} Rae8 {[%emt 0:01:21]} 14. Rad1 {[%emt 0:00:22]} Qf7 {[%emt 0:02:55]} 15. b3 {[%emt 0:02:38]} h6 {[%emt 0:02:10]} 16. Bd2 {[%emt 0:00:54]} d5 {[%emt 0:01:19]} 17. h3 {[%emt 0:00:22]} Kh7 {[%emt 0:01:22]} 18. Nh2 {[%emt 0:02:37]} a6 {[%emt 0:01:47]} 19. Nc2 {[%emt 0:03:23]} Nd6 {[%emt 0:01:10]} 20. f3 {[%emt 0:08:44]} a5 {[%emt 0:06:02]} 21. Ne3 {[%emt 0:07:30]} Nf5 {[%emt 0:05:40]} 22. Nxf5 {[%emt 0:01:30]} gxf5 {[%emt 0:00:18]} 23. Qf2 {[%emt 0:00:43]} b6 {[%emt 0:00:17]} 24. Qh4 {[%emt 0:00:42]} Qg6 {[%emt 0:01:08]} 25. Qa4 {[%emt 0:01:11]} Rg8 {[%emt 0:03:25]} 26. Re2 {[%emt 0:00:26]} Rb8 {[%emt 0:01:01]} 27. Qb5 {[%emt 0:01:10]} Qd6 {[%emt 0:01:16]} 28. Be1 {[%emt 0:02:36]} Ra8 {[%emt 0:05:49]} 29. Bf2 {[%emt 0:02:38]} Rgb8 {[%emt 0:00:51]} 30. Qa4 {[%emt 0:00:37]} d4 {[%emt 0:03:15]} 31. c4 {[%emt 0:01:55]} Ne7 {[%emt 0:00:36]} 32. Rde1 {[%emt 0:00:39]} Rf8 {[%emt 0:02:18]} 33. f4 {[%emt 0:12:17]} e4 {[%emt 0:03:44]} 34. dxe4 {[%emt 0:00:30]} Qxf4 {[%emt 0:00:17]} 35. e5 {[%emt 0:09:09]} Ng6 {[%emt 0:04:36]} 36. Nf3 {[%emt 0:01:14]} h5 {[%emt 0:01:19]} 37. Qc6 {[%emt 0:04:28]} Rab8 {[%emt 0:02:01]} 38. h4 {[%emt 0:05:33]} Bh6 {[%emt 0:03:04]} 39. Nh2 {[%emt 0:11:46]} Nxh4 {[%emt 0:02:44]} 40. g3 {[%emt 0:00:30]} Qg5 {[%emt 0:00:39]} 41. e6 {[%emt 0:02:44]} Qe7 {[%emt 0:05:52]} 42. gxh4 {[%emt 0:01:27]} d3 {[%emt 0:02:31]} 43. Re5 {[%emt 0:00:48]} Rbd8 {[%emt 0:04:53]} 44. Nf3 {[%emt 0:01:05]} Rg8+ {[%emt 0:00:56]} 45. Kh1 {[%emt 0:04:14]} d2 {[%emt 0:01:20]} 46. Nxd2 {[%emt 0:01:36]} Rxd2 47. Rd5 {[%emt 0:00:24]} Rxd5 {[%emt 0:10:47]} 48. Qxd5 {[%emt 0:01:00]} Rf8 {[%emt 0:01:46]} 49. Qf3 {[%emt 0:01:49]} Rf6 {[%emt 0:03:29]} 50. Qxh5 {[%emt 0:00:18]} Qb7+ {[%emt 0:04:44]} 51. Kh2 {[%emt 0:00:38]} Kg7 {[%emt 0:01:48]} 52. e7 {[%emt 0:00:27]} Bf4+ {[%emt 0:03:03]} 53. Kg1 1-0